bitfinex/quotes_ETHUSD_20250822
["timestamp","ask_amount","ask_price","bid_price","bid_amount"]
[1755854368841,13.28683437,4328.7,4328.2,0.004]
[1755854369000,8.86174786,4328.3,4328.2,0.004]
[1755854369200,9.17684786,4328.3,4328.2,0.004]
[1755854369624,9.98879256,4328.3,4328.2,0.004]
[1755854371108,13.64879256,4328.3,4328.2,0.004]
[1755854371518,5.97042927,4328.2,4327.8,0.024]
[1755854371708,9.13783218,4328.2,4327.8,0.024]
[1755854371912,3.66,4328.1,4327.8,0.024]
[1755854372207,9.1770614,4327.9,4327.8,0.024]
[1755854372626,9.6272614,4327.9,4327.8,0.024]
[1755854373225,9.6264614,4327.9,4327.8,0.024]
[1755854373429,11.81387511,4327.9,4327.8,0.024]
[1755854374303,15.72887511,4327.9,4327.8,0.024]
[1755854374532,11.81387511,4327.9,4327.8,0.024]
[1755854374838,15.72887511,4327.9,4327.8,0.024]
[1755854376026,11.81387511,4327.9,4327.8,0.024]
[1755854376224,15.72987511,4327.9,4327.8,0.024]
[1755854377831,15.84507511,4327.9,4327.8,0.024]
[1755854379237,16.20685676,4327.9,4327.8,0.024]
[1755854379838,12.29085676,4327.9,4327.8,0.024]
[1755854380160,16.20685676,4327.9,4327.8,0.024]
[1755854381069,19.20685676,4327.9,4327.8,0.024]
[1755854385473,19.20605676,4327.9,4327.8,0.024]
[1755854386258,18.84427511,4327.9,4327.8,0.024]
[1755854386464,19.50427511,4327.9,4327.8,0.024]
[1755854387058,21.28227511,4327.9,4327.8,0.024]
[1755854387971,2.97064282,4327.8,4327.4,0.004]
[1755854388147,7.21137197,4327.5,4327.4,0.004]
[1755854388348,16.86967497,4327.5,4327.4,0.004]
[1755854388548,17.32217497,4327.5,4327.4,0.004]
[1755854388874,17.41485297,4327.5,4327.4,0.004]
[1755854390466,17.77668159,4327.5,4327.4,0.004]
[1755854390667,20.02163705,4327.5,4327.4,0.004]
[1755854392157,20.51122771,4327.5,4327.4,0.004]
[1755854394717,0.66,4327.2,4327.0,0.004]
[1755854394856,3.66,4326.6,4325.8,0.02]
[1755854395075,17.27243735,4326.6,4325.8,0.02]
[1755854395274,17.69604631,4326.6,4325.8,0.02]
[1755854395520,18.01604631,4326.6,4325.8,0.02]
[1755854397074,7.54967434,4326.6,4325.8,0.02]
[1755854397276,19.67731451,4326.6,4325.8,0.02]
[1755854397707,19.67651451,4326.6,4325.8,0.02]
[1755854398205,19.06258149,4326.6,4325.8,0.02]
[1755854399686,19.8898128,4326.6,4325.8,0.02]
[1755854400087,19.88981275,4326.6,4325.8,0.02]
[1755854400289,19.27581964,4326.6,4325.8,0.02]
[1755854400686,17.84781964,4326.6,4326.5,0.3188]
[1755854400874,16.80048446,4326.6,4326.5,0.3188]
[1755854401081,16.58724631,4326.6,4326.5,0.3188]
[1755854401683,10.36096263,4326.6,4326.5,0.3188]
[1755854402020,10.36096263,4326.6,4324.8,1e-08]
[1755854402021,0.66,4325.2,4324.8,1e-08]
[1755854402308,0.66,4325.2,4321.6,1.778]
[1755854402309,0.66,4324.3,4322.2,0.695603]
[1755854402517,9.8403989,4323.9,4321.6,1.778]
[1755854402711,18.39674206,4323.9,4322.7,0.32]
[1755854403078,18.39674206,4323.9,4322.3,0.32]
[1755854403079,19.87740607,4323.9,4322.3,0.32]
[1755854403280,19.98993722,4323.9,4322.3,0.32]
[1755854403610,17.51390484,4323.9,4322.5,0.32]
[1755854403910,21.50090484,4323.9,4322.5,0.32]
[1755854404098,20.6853384,4323.9,4322.5,0.32]
[1755854404306,24.59198452,4323.9,4322.5,0.32]
[1755854404477,29.18901985,4323.9,4322.7,0.32]
[1755854404813,29.30431865,4323.9,4322.7,0.32]
[1755854405228,33.0,4323.8,4321.8,0.02]
[1755854405442,0.61103533,4323.1,4321.8,0.02]
[1755854405732,3.66,4322.7,4321.8,0.02]
[1755854405899,3.0,4322.5,4321.9,0.34]
[1755854406082,3.0,4322.3,4321.9,0.34]
[1755854406285,3.0,4322.3,4321.8,0.02]
[1755854406286,2.3137384,4322.1,4321.8,0.02]
[1755854406499,0.02892179,4322.0,4321.8,0.02]
[1755854406786,0.02892179,4322.0,4321.9,0.3148]
[1755854406985,0.02891978,4322.3,4321.9,0.6548]
[1755854407186,0.02891978,4322.3,4322.0,0.34]
[1755854407387,0.02891978,4322.3,4322.2,0.3148]
[1755854408321,0.02891978,4322.3,4322.2,0.6548]
[1755854408626,0.02891911,4322.4,4322.2,0.6548]
[1755854409489,2.34235192,4322.6,4322.2,0.3148]
[1755854409725,0.02891778,4322.6,4322.2,0.3148]
[1755854409925,0.02811778,4322.6,4322.2,0.3148]
[1755854410345,0.02811778,4322.6,4322.3,0.34]
[1755854410539,3.0,4322.4,4321.8,0.02]
[1755854410739,0.02811978,4322.3,4321.8,2.33384793]
[1755854410897,0.02811844,4322.5,4322.2,0.3079]
[1755854411097,0.02811844,4322.5,4322.3,0.34]
[1755854411336,0.02811844,4322.5,4322.4,0.3079]
[1755854415309,0.14411844,4322.5,4322.4,0.3079]
[1755854416120,0.14411844,4322.5,4322.4,0.6479]
[1755854416545,0.14411844,4322.5,4322.4,0.3079]
[1755854416897,0.14411844,4322.5,4322.4,0.6479]
[1755854417234,0.14411844,4322.5,4322.4,0.3079]
[1755854418210,0.14411844,4322.5,4321.8,0.02]
[1755854418532,0.116,4322.1,4322.0,2.3137344]
[1755854418738,0.116,4322.1,4321.3,0.004]
[1755854418739,0.66,4321.8,4321.3,0.004]
[1755854418917,0.66,4321.3,4320.8,0.02]
[1755854419113,21.1556431,4320.9,4320.8,0.02]
[1755854419316,25.83006224,4320.9,4320.8,0.02]
[1755854419510,26.29016224,4320.9,4320.8,0.02]
[1755854419842,26.65257039,4320.9,4320.8,0.02]
[1755854420032,29.01467536,4320.9,4320.8,0.02]
[1755854420426,28.88817187,4320.9,4320.8,0.02]
[1755854420629,29.01466119,4320.9,4320.8,0.02]
[1755854421240,29.01466119,4320.9,4320.0,0.499]
[1755854421241,2.31476123,4320.1,4320.0,0.499]
[1755854421540,25.45054779,4320.1,4320.0,0.499]
[1755854421737,21.38754779,4320.1,4320.0,0.499]
[1755854421949,24.61101355,4320.1,4320.0,0.499]
[1755854422163,24.61021355,4320.1,4320.0,0.499]
[1755854422447,24.61101355,4320.1,4320.0,0.499]
[1755854422739,25.38161355,4320.1,4320.0,0.499]
[1755854423209,27.74375318,4320.1,4320.0,0.499]
[1755854423403,27.43325318,4320.1,4320.0,0.499]
[1755854423626,18.23325232,4320.1,4320.0,0.499]
[1755854423865,18.23325232,4320.1,4320.0,0.8069]
[1755854423866,22.29325232,4320.1,4320.0,0.8069]
[1755854424041,24.60801355,4320.1,4320.0,0.499]
[1755854424745,22.29325232,4320.1,4320.0,0.499]
[1755854425449,22.29125232,4320.1,4320.0,0.8069]
[1755854425652,18.23325232,4320.1,4320.0,0.8069]
[1755854425959,0.36244188,4320.1,4320.0,0.8069]
[1755854426129,0.02893451,4320.1,4320.0,0.8069]
[1755854426963,8.836,4320.3,4320.0,0.8069]
[1755854426964,0.02893384,4320.2,4320.0,0.8069]
[1755854428763,0.116,4320.1,4320.0,0.8069]
[1755854429351,0.4783854,4320.1,4320.0,0.8069]
[1755854429656,0.60502291,4320.1,4320.0,0.8069]
[1755854429862,0.60502291,4320.1,4320.0,3.12171481]
[1755854430069,0.4783854,4320.1,4320.0,3.12171481]
[1755854430871,0.4783854,4320.1,4320.0,3.46171481]
[1755854431537,0.4783854,4320.1,4320.0,1.1469]
[1755854432068,0.50731991,4320.1,4320.0,0.8069]
[1755854432247,0.4783854,4320.1,4320.0,0.8069]
[1755854433530,0.60554788,4320.1,4320.0,0.8069]
[1755854434252,0.4775854,4320.1,4320.0,0.8069]
[1755854435137,0.4775854,4320.1,4320.0,3.12171481]
[1755854436664,0.4775854,4320.1,4320.0,2.81381481]
[1755854436865,0.4775854,4320.1,4320.0,3.12171481]
[1755854437278,0.4775854,4320.1,4320.0,0.499]
[1755854437844,0.4775854,4320.1,4320.0,2.81381481]
[1755854438965,0.4775854,4320.1,4320.0,0.499]
[1755854439369,0.4775854,4320.1,4320.0,2.81381481]
[1755854439770,0.4775854,4320.1,4320.0,3.10261481]
[1755854440379,1.1228854,4320.1,4320.0,0.499]
[1755854440677,2.25588074,4320.1,4320.0,0.499]
[1755854440869,1.76624266,4320.1,4320.0,0.499]
[1755854441342,1.30924266,4320.1,4320.0,0.499]
[1755854441676,1.27914373,4320.1,4320.0,0.499]
[1755854442642,0.51864373,4320.1,4320.0,0.499]
[1755854443041,0.82214373,4320.1,4320.0,0.499]
[1755854443272,2.37727799,4320.1,4320.0,0.499]
[1755854443467,1.76624266,4320.1,4320.0,0.499]
[1755854443670,1.28030815,4320.1,4320.0,0.499]
[1755854443874,1.28030815,4320.1,4320.0,0.599]
[1755854444056,0.97680815,4320.1,4320.0,0.599]
[1755854444265,0.3623854,4320.1,4320.0,0.599]
[1755854444469,0.97701604,4320.1,4320.0,0.599]
[1755854444854,0.97701604,4320.1,4320.0,0.8878]
[1755854445052,0.48991711,4320.1,4320.0,0.8878]
[1755854445251,0.48991711,4320.1,4320.0,0.8918]
[1755854445659,0.49091711,4320.1,4320.0,0.8918]
[1755854445978,0.97801604,4320.1,4320.0,0.8918]
[1755854446396,0.97801604,4320.1,4320.0,0.3928]
[1755854446397,0.61563064,4320.1,4320.0,0.3928]
[1755854446570,0.61483064,4320.1,4320.0,0.104]
[1755854446983,0.61483064,4320.1,4320.0,0.3928]
[1755854447166,1.22586597,4320.1,4320.0,0.104]
[1755854447351,0.94726515,4320.1,4320.0,0.104]
[1755854447557,0.82053344,4320.1,4320.0,0.104]
[1755854447749,1.12806877,4320.1,4320.0,0.104]
[1755854448190,0.73066116,4320.1,4320.0,0.104]
[1755854449294,1.13231179,4320.1,4320.0,2.70761481]
[1755854449596,1.10337728,4320.1,4320.0,2.70761481]
[1755854449764,1.46576178,4320.1,4320.0,2.70761481]
[1755854450181,1.46576178,4320.1,4320.0,0.3928]
[1755854450383,0.96648343,4320.1,4320.0,2.70761481]
[1755854451070,0.85048343,4320.1,4320.0,2.70761481]
[1755854451272,0.85048343,4320.1,4320.0,3.04761481]
[1755854451273,0.3633845,4320.1,4320.0,3.04761481]
[1755854452504,0.3633845,4320.1,4320.0,2.70761481]
[1755854455931,0.001,4320.1,4320.0,2.70761481]
[1755854456915,0.3045,4320.1,4320.0,0.104]
[1755854457111,0.7615,4320.1,4320.0,2.41881481]
[1755854457835,0.3045,4320.1,4320.0,2.41881481]
[1755854458248,0.7615,4320.1,4320.0,0.104]
[1755854458855,0.7607,4320.1,4320.0,0.104]
[1755854459308,0.7607,4320.1,4320.0,2.41881481]
[1755854459933,0.7607,4320.1,4320.0,0.104]
[1755854460234,0.7607,4320.1,4320.0,2.41881481]
[1755854460438,0.0002,4320.1,4320.0,2.41881481]
[1755854460635,0.02913451,4320.1,4320.0,2.70761481]
[1755854460837,0.02913451,4320.1,4320.0,2.41881481]
[1755854461038,0.02913451,4320.1,4320.0,0.104]
[1755854461039,0.78963451,4320.1,4320.0,0.104]
[1755854461339,0.90563451,4320.1,4320.0,0.104]
[1755854461639,4.45003662,4320.1,4320.0,0.104]
[1755854461842,4.9429057,4320.1,4320.0,0.104]
[1755854462004,5.5738995,4320.1,4320.0,0.104]
[1755854462208,12.2767015,4320.1,4320.0,0.104]
[1755854462612,16.28465775,4320.1,4320.0,0.104]
[1755854462818,16.1563786,4320.1,4320.0,0.104]
[1755854464039,19.1563786,4320.1,4320.0,0.104]
[1755854464238,19.28464954,4320.1,4320.0,0.104]
[1755854465030,15.27664954,4320.1,4320.0,0.104]
[1755854465231,19.28150344,4320.1,4320.0,0.104]
[1755854466939,15.38988852,4320.1,4320.0,0.104]
[1755854467141,19.27850344,4320.1,4320.0,0.104]
[1755854467642,19.89347529,4320.1,4320.0,0.104]
[1755854468341,19.27850344,4320.1,4320.0,0.104]
[1755854468543,20.25592318,4320.1,4320.0,0.104]
[1755854469333,19.64095133,4320.1,4320.0,0.104]
[1755854471020,19.74415133,4320.1,4320.0,0.104]
[1755854471218,19.61560056,4320.1,4320.0,0.104]
[1755854471421,19.74362537,4320.1,4320.0,0.104]
[1755854471822,19.74362842,4320.1,4320.0,0.104]
[1755854472024,17.42886719,4320.1,4319.8,0.02]
[1755854472226,3.66,4319.5,4319.1,0.004]
[1755854472424,9.19047058,4319.2,4319.1,0.004]
[1755854473023,14.00308626,4319.2,4319.1,0.004]
[1755854473857,18.36754447,4319.2,4319.1,0.004]
[1755854474018,20.7296841,4319.2,4319.1,0.004]
[1755854474429,20.7296841,4319.2,4317.0,0.01411737]
[1755854474430,3.66,4319.1,4315.0,0.12112074]
[1755854474750,6.87522702,4315.9,4313.9,0.3446]
[1755854474950,4.3317,4315.9,4313.2,0.12114448]
[1755854475151,12.95150352,4315.9,4314.8,0.3646]
[1755854475456,0.2495,4316.0,4315.8,0.3219]
[1755854475753,0.02895663,4316.8,4315.8,0.3219]
[1755854475954,0.3646,4316.5,4315.8,0.3219]
[1755854476140,0.0289573,4316.7,4315.9,0.3446]
[1755854476314,0.02895395,4317.2,4316.6,0.3019]
[1755854476638,0.696633,4317.2,4316.6,0.3019]
[1755854476824,0.02895462,4317.1,4316.6,0.3019]
[1755854477153,0.72553293,4317.5,4316.6,2.9631295]
[1755854477321,0.02895261,4317.4,4316.6,0.6465]
[1755854477654,17.91010267,4318.1,4316.6,0.6465]
[1755854477655,1.781,4318.5,4316.7,0.3446]
[1755854477865,0.696479,4318.1,4317.5,2.31614987]
[1755854478173,0.696479,4318.1,4316.7,2.66116694]
[1755854478174,0.02894858,4318.0,4317.6,2.31609928]
[1755854478349,0.02894657,4318.3,4316.8,2.1266]
[1755854478662,0.696476,4318.2,4316.9,2.6610771]
[1755854478870,0.02894791,4318.1,4317.4,2.31617082]
[1755854479028,0.36261547,4318.0,4317.4,2.31616199]
[1755854479235,0.02894925,4317.9,4317.0,0.3446]
[1755854479430,0.36261547,4318.0,4317.8,0.3019]
[1755854479742,0.02894791,4318.1,4317.8,0.3019]
[1755854479946,0.0289459,4318.4,4317.9,0.3446]
[1755854480390,0.0289459,4318.4,4318.0,2.31586711]
[1755854480573,0.0289459,4318.4,4318.3,0.3019]
[1755854481474,0.36256729,4318.4,4318.3,0.3019]
[1755854482773,0.47856729,4318.4,4318.3,0.3019]
[1755854482978,0.47856729,4318.4,4317.6,1.782]
[1755854483288,0.02814657,4318.3,4318.2,2.31577402]
[1755854483492,0.02814657,4318.3,4318.2,2.61767402]
[1755854483682,0.14414657,4318.3,4318.2,2.61767402]
[1755854484113,0.14414657,4318.3,4318.2,0.3019]
[1755854484413,0.14414657,4318.3,4318.2,2.61767972]
[1755854485382,0.36256729,4318.4,4318.3,2.31572609]
[1755854485583,0.02,4318.8,4318.7,2.31551161]
[1755854485783,0.136,4318.8,4318.7,2.61741161]
[1755854485986,0.136,4318.8,4318.7,2.96201161]
[1755854486185,0.136,4318.8,4318.7,5.96201161]
[1755854486387,0.02,4318.8,4318.7,5.96201161]
[1755854487626,0.02,4319.8,4319.7,2.31497557]
[1755854487829,0.02,4319.8,4319.7,2.61687557]
[1755854488013,0.136,4319.8,4319.7,2.61687557]
[1755854489723,0.02,4319.8,4319.7,0.3019]
[1755854489923,0.02,4319.8,4319.7,2.61687557]
[1755854490104,0.02,4319.8,4319.7,0.3019]
[1755854490305,0.02,4319.8,4319.7,2.61687557]
[1755854490515,0.02,4319.8,4319.7,0.3019]
[1755854490906,0.02,4319.8,4319.7,2.61687557]
[1755854491407,0.02,4319.8,4319.7,2.96147557]
[1755854491798,0.02,4319.8,4319.7,2.61687557]
[1755854492003,0.02,4319.8,4319.7,0.3019]
[1755854492297,0.02,4319.8,4319.7,2.61687557]
[1755854494829,0.02,4319.8,4319.7,6.63987557]
[1755854495543,0.0202,4319.8,4319.7,6.63987557]
[1755854497137,0.0202,4319.8,4319.7,7.10907114]
[1755854497338,0.0202,4319.8,4319.7,6.63987557]
[1755854499759,0.1362,4319.8,4319.7,6.63987557]
[1755854502162,0.1362,4319.8,4319.7,6.33797557]
[1755854502868,0.1362,4319.8,4319.7,6.32497557]
[1755854503073,0.1362,4319.8,4319.7,6.63337557]
[1755854503246,0.1362,4319.8,4319.7,2.62337557]
[1755854503431,0.1362,4319.8,4319.7,6.63237557]
[1755854507638,0.1354,4319.8,4319.7,6.63237557]
[1755854515575,0.1354,4319.8,4319.7,10.63697557]
[1755854515576,1e-08,4319.8,4319.7,10.63697557]
[1755854515773,1e-08,4319.8,4319.7,17.19580118]
[1755854516140,1e-08,4319.8,4319.7,5.62337557]
[1755854516346,1e-08,4319.8,4319.7,9.96197557]
[1755854519475,1e-08,4319.8,4319.7,10.62197557]
[1755854519977,0.00020001,4320.3,4320.2,2.31470765]
[1755854520186,0.00020001,4320.3,4320.2,11.39310765]
[1755854520486,0.00020001,4320.3,4320.2,12.39770765]
[1755854521769,0.00020001,4320.3,4320.2,8.40870765]
[1755854521972,0.36230951,4321.5,4320.7,2.31443978]
[1755854522284,0.36230951,4321.5,4320.7,9.84128376]
[1755854522658,0.4574,4321.6,4320.7,9.84128376]
[1755854524480,0.4574,4321.7,4320.9,2.31433266]
[1755854524787,0.4574,4321.7,4320.9,9.60973266]
[1755854525389,0.4574,4321.7,4320.9,9.60773266]
[1755854525590,0.116,4321.4,4320.9,9.60773266]
[1755854526674,1e-08,4321.0,4320.9,16.18155827]
[1755854526869,1e-08,4321.0,4320.9,5.62273266]
[1755854527087,1e-08,4321.0,4320.9,9.60473266]
[1755854527263,1e-08,4321.0,4320.9,9.72073266]
[1755854528606,1e-08,4321.0,4320.9,16.63915827]
[1755854528890,1e-08,4321.0,4320.9,17.29915827]
[1755854529593,1e-08,4321.0,4320.9,19.73615827]
[1755854529979,1e-08,4321.8,4321.7,5.97390425]
[1755854530313,1e-08,4321.8,4321.7,12.15980425]
[1755854530502,1e-08,4321.8,4321.7,12.50440425]
[1755854530865,1e-08,4321.8,4321.7,18.73662986]
[1755854531261,1e-08,4321.8,4321.7,19.08122986]
[1755854532207,0.47380001,4322.7,4322.2,2.31363092]
[1755854532409,0.116,4322.9,4322.4,3.0]
[1755854532598,0.116,4322.9,4322.7,2.31336895]
[1755854532768,0.116,4322.9,4322.7,9.30036895]
[1755854532769,0.329,4322.8,4322.7,9.30036895]
[1755854533995,0.02,4322.8,4322.7,9.60326895]
[1755854534198,0.116,4323.2,4322.8,3.0]
[1755854534412,0.001,4323.5,4323.4,2.3129944]
[1755854534593,0.31,4323.5,4323.4,8.0849944]
[1755854534768,0.31,4323.5,4323.4,11.0849944]
[1755854534972,0.7846,4323.5,4323.4,11.0849944]
[1755854535705,0.7846,4323.5,4323.4,7.0929944]
[1755854535902,0.7846,4323.5,4323.4,11.0829944]
[1755854536113,0.7846,4323.5,4323.4,7.0929944]
[1755854536413,0.7846,4323.5,4323.4,5.77]
[1755854536782,0.7846,4323.5,4323.4,8.0829944]
[1755854536992,0.7846,4323.5,4323.4,1.78]
[1755854537291,0.31,4323.5,4323.4,8.0829944]
[1755854537504,0.7846,4323.5,4323.4,8.0829944]
[1755854538400,0.31,4323.5,4323.4,8.0829944]
[1755854538611,0.7846,4323.5,4323.4,8.0829944]
[1755854539701,0.7846,4323.5,4323.4,5.769]
[1755854539899,0.7846,4323.5,4323.4,8.0819944]
[1755854540511,0.426,4323.5,4323.4,8.0819944]
[1755854540719,0.9006,4323.5,4323.4,8.0819944]
[1755854541123,0.001,4323.7,4323.4,12.0448944]
[1755854541307,0.001,4323.7,4323.6,7.23382561]
[1755854541513,0.001,4323.7,4323.6,11.53072561]
[1755854541817,0.001,4323.7,4323.6,13.84361301]
[1755854543138,1e-08,4323.8,4323.7,5.31283391]
[1755854543284,1e-08,4323.8,4323.7,6.27573391]
[1755854543618,1e-08,4323.8,4323.7,9.72873391]
[1755854544502,0.47380001,4324.6,4324.5,2.31240605]
[1755854544723,0.78280001,4324.6,4324.5,9.30940605]
[1755854545500,0.89880001,4324.6,4324.5,9.30940605]
[1755854545705,0.89880001,4324.6,4324.5,9.48043975]
[1755854546221,0.02,4324.8,4324.7,2.31229911]
[1755854546430,0.02,4324.8,4324.7,6.30629911]
[1755854546631,0.329,4324.8,4324.7,6.30629911]
[1755854546784,0.329,4324.8,4324.7,6.30829911]
[1755854546989,0.8036,4324.8,4324.7,6.30829911]
[1755854547918,0.8036,4324.8,4324.7,2.31229911]
[1755854548119,0.8036,4324.8,4324.7,6.30829911]
[1755854549592,0.8036,4324.8,4324.7,2.31229911]
[1755854549793,0.8036,4324.8,4324.7,6.30329911]
[1755854550206,0.02,4324.8,4324.7,6.30329911]
[1755854550607,0.8036,4324.8,4324.7,6.30329911]
[1755854552831,0.8036,4324.8,4324.7,2.31229911]
[1755854553012,0.8036,4324.8,4324.7,3.989]
[1755854553324,0.8036,4324.8,4324.5,3.0]
[1755854553534,0.116,4324.6,4323.7,1.779]
[1755854553694,0.02890507,4324.5,4323.8,6.30078042]
[1755854553893,0.425,4323.9,4323.8,6.988]
[1755854554247,0.8996,4323.9,4323.8,9.30078042]
[1755854554924,0.8996,4323.9,4323.8,5.31278042]
[1755854555088,0.8996,4323.9,4323.8,9.30178042]
[1755854555488,0.8996,4323.9,4323.7,1.779]
[1755854555489,0.8996,4323.9,4323.7,4.09179359]
[1755854555694,0.425,4323.9,4323.8,6.29978042]
[1755854556405,0.8996,4323.9,4323.8,6.29978042]
[1755854556922,0.8988,4323.9,4323.8,6.29978042]
[1755854557993,0.8988,4323.9,4323.8,3.986]
[1755854558224,0.8988,4323.9,4323.8,2.31278042]
[1755854558542,0.8988,4323.9,4323.3,1.779]
[1755854558702,0.4505,4323.8,4323.5,2.31293262]
[1755854559025,0.4505,4323.8,4323.3,1.779]
[1755854559026,0.116,4323.4,4323.3,4.09204704]
[1755854559216,0.8753,4323.4,4323.3,8.0750479]
[1755854560400,0.8753,4323.4,4323.3,5.762]
[1755854560637,0.8753,4323.4,4323.3,8.0750479]
[1755854561131,0.8753,4323.4,4323.3,1.779]
[1755854561510,0.8753,4323.4,4323.3,5.76]
[1755854564299,0.8753,4323.4,4323.3,1.783]
[1755854564534,0.8753,4323.4,4323.3,5.762]
[1755854566302,0.4248,4323.4,4323.3,5.759]
[1755854566507,0.8753,4323.4,4323.3,5.759]
[1755854566914,0.8753,4323.4,4323.3,1.783]
[1755854567229,0.8753,4323.4,4323.3,5.759]
[1755854568846,0.424,4323.4,4323.3,8.0720479]
[1755854569051,0.1152,4323.4,4323.3,1.783]
[1755854569219,0.1152,4323.4,4323.3,8.0690479]
[1755854569414,0.47730873,4323.4,4323.3,8.0690479]
[1755854569950,0.47730873,4323.4,4323.3,8.3612479]
[1755854570142,0.116,4323.7,4323.6,2.3128874]
[1755854570333,0.36205183,4324.5,4324.4,2.31241138]
[1755854570509,0.67085183,4324.5,4324.4,6.29341138]
[1755854570712,0.78685183,4324.5,4324.4,6.29341138]
[1755854571115,0.78685183,4324.5,4324.4,3.981]
[1755854571720,0.78685183,4324.5,4324.4,6.29345953]
[1755854572147,1.23735183,4324.5,4323.5,2.31293637]
[1755854572449,0.67085183,4324.5,4324.3,2.31250954]
[1755854572621,0.67085183,4324.5,4324.4,3.979]
[1755854573019,1.23735183,4324.5,4324.4,3.979]
[1755854573552,1.23735183,4324.5,4322.3,1e-08]
[1755854573553,30.66,4324.4,4322.3,1e-08]
[1755854573735,30.66,4324.4,4319.7,0.004]
[1755854573736,30.0,4322.3,4319.7,2.91356225]
[1755854573927,30.0,4322.3,4319.7,0.004]
[1755854573928,30.0,4320.8,4319.7,0.004]
[1755854574140,12.17053326,4320.2,4319.7,0.004]
[1755854574322,14.46887312,4320.2,4319.7,0.004]
[1755854574654,13.23778633,4320.2,4319.7,0.004]
[1755854575624,13.60023468,4320.2,4319.7,0.004]
[1755854575849,13.5996302,4320.2,4319.7,0.004]
[1755854576455,21.79470996,4320.2,4319.7,0.004]
[1755854577157,21.43226161,4320.2,4319.7,0.004]
[1755854578249,21.55898172,4320.2,4319.7,0.004]
[1755854578453,21.5589817,4320.2,4319.7,0.004]
[1755854578828,23.92112133,4320.2,4319.7,0.004]
[1755854580266,21.15761368,4320.2,4319.7,0.004]
[1755854580468,21.15761368,4320.2,4319.0,4.09531539]
[1755854580469,1.34953278,4318.7,4316.8,0.02]
[1755854580628,14.89605179,4316.9,4316.8,0.02]
[1755854580826,14.89605179,4317.2,4316.8,0.3122]
[1755854581021,14.89605179,4317.2,4316.9,0.4478]
[1755854581267,0.4478,4317.2,4317.1,0.2922]
[1755854581472,2.31631613,4317.2,4317.1,0.2922]
[1755854581623,2.31627678,4317.3,4317.1,0.2922]
[1755854581833,0.36263072,4317.2,4317.1,0.2922]
[1755854582330,0.696564,4317.5,4317.4,2.31620882]
[1755854582551,0.696564,4317.5,4317.4,7.13620882]
[1755854582941,0.36257265,4318.7,4317.4,7.13620882]
[1755854582942,0.36257265,4318.7,4317.4,7.13920882]
[1755854583140,0.36257265,4318.7,4318.2,2.31575859]
[1755854583366,0.36257265,4318.7,4318.3,6.39971374]
[1755854583528,0.36257265,4318.7,4318.3,4.084]
[1755854583729,0.36257265,4318.7,4318.4,0.4478]
[1755854584027,0.116,4318.5,4318.4,0.4478]
[1755854584225,0.116,4318.5,4318.4,0.74]
[1755854584661,0.116,4318.5,4318.4,3.05567247]
[1755854587874,0.02,4318.8,4318.7,2.31551161]
[1755854588081,0.02,4318.8,4318.7,2.62761161]
[1755854588240,0.02,4318.8,4318.7,5.62761161]
[1755854588439,0.02,4318.8,4318.7,6.07391161]
[1755854589553,0.02,4318.8,4318.7,10.14691161]
[1755854590452,0.02,4318.8,4318.7,10.80691161]
[1755854590782,0.02,4318.8,4318.7,10.92291161]
[1755854591188,0.136,4319.8,4319.7,2.31497557]
[1755854591373,0.136,4319.8,4319.7,8.47807557]
[1755854591685,0.136,4319.8,4319.7,8.92437557]
[1755854591850,0.02,4319.8,4319.7,8.92437557]
[1755854592056,0.02,4319.8,4319.7,12.70037557]
[1755854593488,0.0192,4319.8,4319.7,12.70037557]
[1755854594787,0.0192,4319.8,4319.7,1.897]
[1755854594974,0.4342,4319.8,4319.7,5.844]
[1755854595298,0.4342,4319.8,4319.7,1.781]
[1755854595582,0.4342,4319.8,4319.7,5.844]
[1755854595989,0.4342,4319.8,4319.7,8.15897557]
[1755854596484,0.1352,4319.8,4319.7,5.844]
[1755854596685,0.1352,4319.8,4319.7,8.15897557]
[1755854597361,0.1352,4319.8,4319.7,5.844]
[1755854597895,0.1352,4319.8,4319.7,8.15897557]
[1755854598493,0.1362,4319.8,4319.7,8.15897557]
[1755854599580,0.26305306,4319.8,4319.7,8.15897557]
[1755854599767,0.1362,4319.8,4319.7,8.91737557]
[1755854599957,0.0202,4319.8,4319.7,8.91737557]
[1755854601178,0.14727305,4319.8,4319.7,8.91737557]
[1755854601887,0.0202,4319.8,4319.7,8.91637557]
[1755854602092,0.0202,4319.8,4319.7,11.91637557]
[1755854602263,0.0202,4319.8,4319.7,12.57637557]
[1755854602458,0.0202,4319.8,4319.7,12.69237557]
[1755854603095,1e-08,4319.8,4319.7,12.69237557]
[1755854603297,0.001,4320.7,4320.4,2.31460049]
[1755854603502,0.49076698,4320.6,4320.5,11.81454692]
[1755854603796,0.001,4320.7,4320.6,6.09049335]
[1755854604095,0.001,4320.7,4320.6,6.84889335]
[1755854604506,1e-08,4320.7,4320.6,6.84889335]
[1755854604674,1e-08,4320.8,4320.7,5.97443978]
[1755854604875,1e-08,4320.8,4320.7,10.79083978]
[1755854605471,1e-08,4320.8,4320.7,10.96331009]
[1755854605818,0.136,4321.8,4321.7,2.31390425]
[1755854605819,0.13520001,4321.8,4321.7,2.31390425]
[1755854605972,0.01920001,4321.8,4321.7,8.15090425]
[1755854607674,0.01920001,4321.8,4321.7,8.14690425]
[1755854608506,0.01920001,4321.8,4321.7,8.45900425]
[1755854608808,0.01920001,4321.8,4321.7,8.90530425]
[1755854609906,0.32060001,4321.8,4321.7,1.781]
[1755854610086,0.86460001,4321.8,4321.6,4.047]
[1755854610284,0.5453,4321.7,4321.6,4.047]
[1755854611081,0.5453,4321.7,4321.6,6.36095779]
[1755854611280,0.5453,4321.7,4321.6,4.047]